[Event "Titled Tuesday Blitz June 27 Early 2023"]
[White "Veiga, Jose Francisco R P Neves"]
[Black "Topalov, Aleksandar"]
[WhiteFideId "1930087"]
[BlackFideId "925659"]
[WhiteElo "2685"]
[BlackElo "2405"]
[Result "1-0"]
[Round "4"]
[TimeControl "180+2"]
[Date "2023.06.27"]
[WhiteClock "0:00:07"]
[BlackClock "0:00:00"]
[Board "95"]

1. c4 {[%clk 0:03:00]}  Nf6 {[%clk 0:02:59]} 2. Nc3 {[%clk 0:02:59]}  g6 {[%clk 0:02:59]} 3. e4 {[%clk 0:02:59]}  d6 {[%clk 0:02:59]} 4. g3 {[%clk 0:02:59]}  Bg7 {[%clk 0:03:00]} 5. Bg2 {[%clk 0:03:00]}  O-O {[%clk 0:03:00]} 6. Nge2 {[%clk 0:03:01]}  c5 {[%clk 0:02:59]} 7. O-O {[%clk 0:03:01]}  Nc6 {[%clk 0:03:00]} 8. a3 {[%clk 0:03:00]}  a6 {[%clk 0:02:59]} 9. Rb1 {[%clk 0:03:00]}  Rb8 {[%clk 0:02:59]} 10. b4 {[%clk 0:03:00]}  cxb4 {[%clk 0:02:59]} 11. axb4 {[%clk 0:03:01]}  b5 {[%clk 0:02:58]} 12. cxb5 {[%clk 0:02:58]}  axb5 {[%clk 0:02:58]} 13. d4 {[%clk 0:02:52]}  Bd7 {[%clk 0:02:55]} 14. h3 {[%clk 0:02:51]}  Ne8 {[%clk 0:02:34]} 15. Be3 {[%clk 0:02:49]}  Nc7 {[%clk 0:02:28]} 16. Qd3 {[%clk 0:02:47]}  Ne6 {[%clk 0:02:19]} 17. Rfc1 {[%clk 0:02:39]}  Nc7 {[%clk 0:02:08]} 18. f4 {[%clk 0:02:00]}  e6 {[%clk 0:01:31]} 19. d5 {[%clk 0:01:55]}  exd5 {[%clk 0:01:30]} 20. Nxd5 {[%clk 0:01:55]}  Ne6 {[%clk 0:01:09]} 21. Nec3 {[%clk 0:01:36]}  Re8 {[%clk 0:01:01]} 22. Nxb5 {[%clk 0:01:32]}  Ne5 {[%clk 0:01:01]} 23. fxe5 {[%clk 0:01:25]}  Bxb5 {[%clk 0:01:01]} 24. Qd2 {[%clk 0:01:19]}  Bxe5 {[%clk 0:01:00]} 25. Kh2 {[%clk 0:01:15]}  Qh4 {[%clk 0:00:55]} 26. Bf4 {[%clk 0:01:08]}  Bxf4 {[%clk 0:00:45]} 27. gxf4 {[%clk 0:01:09]}  Rbc8 {[%clk 0:00:31]} 28. Qe3 {[%clk 0:00:54]}  Bc4 {[%clk 0:00:13]} 29. Nb6 {[%clk 0:00:48]}  Ba2 {[%clk 0:00:07]} 30. Rb2 {[%clk 0:00:11]}  Rb8 {[%clk 0:00:05]} 31. Rxa2 {[%clk 0:00:10]}  Nxf4 {[%clk 0:00:05]} 32. Nd7 {[%clk 0:00:07]}  Rbd8 {[%clk 0:00:04]} 33. Nb6 {[%clk 0:00:07]}  Rb8 {[%clk 0:00:04]} 34. Nd7 {[%clk 0:00:08]}  Rbd8 {[%clk 0:00:04]} 35. Ra7 {[%clk 0:00:08]}  Ne6 {[%clk 0:00:04]} 36. Qg3 {[%clk 0:00:07]}  Qh5 {[%clk 0:00:00]} 37. Nf6+ {[%clk 0:00:07]} 1-0


[Site "https://www.chess.com"]

[Event "Titled Tuesday Blitz June 27 Early 2023"]
[White "Arhan_Anand"]
[Black "Kuznetsov, Mikhail"]
[BlackFideId "4117190"]
[WhiteElo "2683"]
[BlackElo "2401"]
[Result "1/2-1/2"]
[Round "4"]
[TimeControl "180+2"]
[Date "2023.06.27"]
[WhiteClock "0:00:54"]
[BlackClock "0:00:39"]
[Board "96"]

1. e4 {[%clk 0:03:00]}  c6 {[%clk 0:02:59]} 2. d4 {[%clk 0:03:00]}  d5 {[%clk 0:02:59]} 3. exd5 {[%clk 0:03:01]}  cxd5 {[%clk 0:03:00]} 4. Bd3 {[%clk 0:03:02]}  Nc6 {[%clk 0:03:00]} 5. c3 {[%clk 0:03:02]}  Nf6 {[%clk 0:03:00]} 6. Bf4 {[%clk 0:03:03]}  Bg4 {[%clk 0:03:00]} 7. Qb3 {[%clk 0:03:03]}  e5 {[%clk 0:03:01]} 8. h3 {[%clk 0:03:01]}  Na5 {[%clk 0:02:56]} 9. Qc2 {[%clk 0:02:58]}  exf4 {[%clk 0:02:54]} 10. hxg4 {[%clk 0:02:57]}  Nxg4 {[%clk 0:02:54]} 11. Qe2+ {[%clk 0:02:58]}  Qe7 {[%clk 0:02:53]} 12. Nh3 {[%clk 0:02:58]}  f3 {[%clk 0:02:53]} 13. gxf3 {[%clk 0:02:58]}  Qxe2+ {[%clk 0:02:53]} 14. Kxe2 {[%clk 0:02:58]}  Nf6 {[%clk 0:02:53]} 15. Nd2 {[%clk 0:02:58]}  Bd6 {[%clk 0:02:51]} 16. Rag1 {[%clk 0:02:58]}  g6 {[%clk 0:02:51]} 17. f4 {[%clk 0:02:54]}  Nc6 {[%clk 0:02:48]} 18. f5 {[%clk 0:02:53]}  Kf8 {[%clk 0:02:36]} 19. Ng5 {[%clk 0:02:43]}  Kg7 {[%clk 0:02:34]} 20. Kf3 {[%clk 0:02:34]}  Rag8 {[%clk 0:02:09]} 21. Nh3 {[%clk 0:02:25]}  Nh5 {[%clk 0:01:59]} 22. Nf1 {[%clk 0:02:22]}  Kf6 {[%clk 0:01:55]} 23. Ne3 {[%clk 0:02:22]}  Ne7 {[%clk 0:01:53]} 24. Ng5 {[%clk 0:01:58]}  h6 {[%clk 0:01:30]} 25. Ng4+ {[%clk 0:01:57]}  Kxg5 {[%clk 0:01:25]} 26. Rxh5+ {[%clk 0:01:46]}  gxh5 {[%clk 0:00:39]} 27. Ne5+ {[%clk 0:01:45]}  Kh4 {[%clk 0:00:39]} 28. Rh1+ {[%clk 0:01:32]}  Kg5 {[%clk 0:00:39]} 29. Rg1+ {[%clk 0:01:27]}  Kh4 {[%clk 0:00:39]} 30. Rh1+ {[%clk 0:01:15]}  Kg5 {[%clk 0:00:39]} 31. Rg1+ {[%clk 0:00:54]} 1/2-1/2


[Site "https://www.chess.com"]

[Event "Titled Tuesday Blitz June 27 Early 2023"]
[White "Llanos, Guillermo"]
[Black "Korchmar, Vasiliy"]
[WhiteFideId "100358"]
[BlackFideId "24131750"]
[WhiteElo "2384"]
[BlackElo "2675"]
[Result "0-1"]
[Round "4"]
[TimeControl "180+2"]
[Date "2023.06.27"]
[WhiteClock "0:00:53"]
[BlackClock "0:01:32"]
[Board "98"]

1. c4 {[%clk 0:02:56]}  c6 {[%clk 0:02:59]} 2. d4 {[%clk 0:02:54]}  d5 {[%clk 0:03:00]} 3. Nc3 {[%clk 0:02:54]}  Nf6 {[%clk 0:03:00]} 4. Bg5 {[%clk 0:02:53]}  e6 {[%clk 0:02:59]} 5. e3 {[%clk 0:02:51]}  Nbd7 {[%clk 0:02:59]} 6. Nf3 {[%clk 0:02:51]}  Be7 {[%clk 0:02:55]} 7. Qc2 {[%clk 0:02:50]}  O-O {[%clk 0:02:55]} 8. Bd3 {[%clk 0:02:50]}  dxc4 {[%clk 0:02:55]} 9. Bxc4 {[%clk 0:02:49]}  b5 {[%clk 0:02:56]} 10. Bd3 {[%clk 0:02:49]}  Bb7 {[%clk 0:02:55]} 11. a3 {[%clk 0:02:44]}  h6 {[%clk 0:02:54]} 12. Bh4 {[%clk 0:02:44]}  Rc8 {[%clk 0:02:52]} 13. b4 {[%clk 0:02:42]}  a5 {[%clk 0:02:48]} 14. Rb1 {[%clk 0:02:42]}  Nd5 {[%clk 0:02:41]} 15. Bxe7 {[%clk 0:02:38]}  Qxe7 {[%clk 0:02:42]} 16. Na2 {[%clk 0:02:33]}  e5 {[%clk 0:02:38]} 17. Bh7+ {[%clk 0:02:20]}  Kh8 {[%clk 0:02:38]} 18. Bf5 {[%clk 0:02:20]}  exd4 {[%clk 0:02:27]} 19. Nxd4 {[%clk 0:02:20]}  c5 {[%clk 0:02:28]} 20. bxc5 {[%clk 0:02:16]}  Rxc5 {[%clk 0:02:26]} 21. Qd2 {[%clk 0:02:14]}  Ne5 {[%clk 0:02:12]} 22. O-O {[%clk 0:02:05]}  Qg5 {[%clk 0:02:12]} 23. f4 {[%clk 0:01:58]}  Nc4 {[%clk 0:02:00]} 24. Qc1 {[%clk 0:01:39]}  Qe7 {[%clk 0:01:59]} 25. e4 {[%clk 0:01:34]}  Nde3 {[%clk 0:01:58]} 26. Re1 {[%clk 0:01:29]}  Nxf5 {[%clk 0:01:54]} 27. Nxf5 {[%clk 0:01:26]}  Qc7 {[%clk 0:01:39]} 28. Qc3 {[%clk 0:01:23]}  f6 {[%clk 0:01:39]} 29. Qg3 {[%clk 0:01:18]}  Nd2 {[%clk 0:01:36]} 30. Rbc1 {[%clk 0:01:11]}  Nxe4 {[%clk 0:01:35]} 31. Qg6 {[%clk 0:01:04]}  Rxc1 {[%clk 0:01:31]} 32. Rxc1 {[%clk 0:00:53]}  Qb6+ {[%clk 0:01:32]} 0-1


[Site "https://www.chess.com"]

[Event "Titled Tuesday Blitz June 27 Early 2023"]
[White "Dishman, Stephen"]
[Black "Kvaloy, Aksel Bu"]
[WhiteFideId "403024"]
[BlackFideId "1528815"]
[WhiteElo "2365"]
[BlackElo "2670"]
[Result "0-1"]
[Round "4"]
[TimeControl "180+2"]
[Date "2023.06.27"]
[WhiteClock "0:00:06"]
[BlackClock "0:00:13"]
[Board "99"]

1. c4 {[%clk 0:03:00]}  Nf6 {[%clk 0:02:57]} 2. g3 {[%clk 0:03:00]}  e5 {[%clk 0:02:56]} 3. Bg2 {[%clk 0:03:00]}  Nc6 {[%clk 0:02:51]} 4. Nc3 {[%clk 0:02:57]}  Bb4 {[%clk 0:02:51]} 5. Nd5 {[%clk 0:02:54]}  Nxd5 {[%clk 0:02:49]} 6. cxd5 {[%clk 0:02:54]}  Ne7 {[%clk 0:02:49]} 7. a3 {[%clk 0:02:53]}  Ba5 {[%clk 0:02:47]} 8. b4 {[%clk 0:02:50]}  Bb6 {[%clk 0:02:44]} 9. Bb2 {[%clk 0:02:50]}  d6 {[%clk 0:02:43]} 10. e3 {[%clk 0:02:48]}  O-O {[%clk 0:02:43]} 11. Ne2 {[%clk 0:02:47]}  f5 {[%clk 0:02:42]} 12. O-O {[%clk 0:02:47]}  Ng6 {[%clk 0:02:33]} 13. f4 {[%clk 0:02:39]}  Qe7 {[%clk 0:02:26]} 14. Qc2 {[%clk 0:02:38]}  Bd7 {[%clk 0:02:24]} 15. a4 {[%clk 0:02:21]}  a5 {[%clk 0:02:16]} 16. b5 {[%clk 0:02:21]}  Rae8 {[%clk 0:02:14]} 17. fxe5 {[%clk 0:02:09]}  dxe5 {[%clk 0:02:09]} 18. Ba3 {[%clk 0:02:08]}  Qg5 {[%clk 0:02:07]} 19. Bxf8 {[%clk 0:02:07]}  Rxf8 {[%clk 0:02:08]} 20. Qc3 {[%clk 0:02:01]}  f4 {[%clk 0:02:06]} 21. Kh1 {[%clk 0:01:49]}  Bg4 {[%clk 0:01:34]} 22. exf4 {[%clk 0:01:36]}  Qh5 {[%clk 0:01:32]} 23. Nc1 {[%clk 0:01:28]}  exf4 {[%clk 0:01:31]} 24. gxf4 {[%clk 0:01:22]}  Nxf4 {[%clk 0:01:25]} 25. Nb3 {[%clk 0:01:20]}  Nxg2 {[%clk 0:01:09]} 26. Rxf8+ {[%clk 0:01:20]}  Kxf8 {[%clk 0:01:06]} 27. Kxg2 {[%clk 0:01:10]}  Qxd5+ {[%clk 0:01:05]} 28. Kg3 {[%clk 0:01:04]}  Qg5 {[%clk 0:01:02]} 29. h4 {[%clk 0:00:49]}  Qg6 {[%clk 0:01:00]} 30. Kh2 {[%clk 0:00:38]}  h5 {[%clk 0:00:46]} 31. Rf1+ {[%clk 0:00:36]}  Kg8 {[%clk 0:00:46]} 32. Qe5 {[%clk 0:00:27]}  Kh7 {[%clk 0:00:39]} 33. Rf4 {[%clk 0:00:21]}  Bd1 {[%clk 0:00:23]} 34. Nd4 {[%clk 0:00:17]}  Bg4 {[%clk 0:00:20]} 35. Qe4 {[%clk 0:00:17]}  Qxe4 {[%clk 0:00:12]} 36. Rxe4 {[%clk 0:00:18]}  Kg6 {[%clk 0:00:11]} 37. Ne6 {[%clk 0:00:16]}  Kf6 {[%clk 0:00:10]} 38. Re1 {[%clk 0:00:15]}  Bxe6 {[%clk 0:00:09]} 39. Kg3 {[%clk 0:00:14]}  Bc5 {[%clk 0:00:09]} 40. Kf4 {[%clk 0:00:13]}  Bd6+ {[%clk 0:00:07]} 41. Ke4 {[%clk 0:00:13]}  Bf5+ {[%clk 0:00:04]} 42. Kd4 {[%clk 0:00:12]}  g6 {[%clk 0:00:05]} 43. Kd5 {[%clk 0:00:09]}  Bg3 {[%clk 0:00:05]} 44. b6 {[%clk 0:00:08]}  Bxe1 {[%clk 0:00:03]} 45. bxc7 {[%clk 0:00:09]}  Bg3 {[%clk 0:00:04]} 46. Kc5 {[%clk 0:00:06]}  Bxc7 {[%clk 0:00:04]} 47. Kb5 {[%clk 0:00:07]}  Bd7+ {[%clk 0:00:03]} 48. Kc5 {[%clk 0:00:07]}  Bxa4 {[%clk 0:00:04]} 49. Kc4 {[%clk 0:00:07]}  Bd7 {[%clk 0:00:05]} 50. Kc3 {[%clk 0:00:07]}  Ke5 {[%clk 0:00:05]} 51. Kb3 {[%clk 0:00:08]}  Kd5 {[%clk 0:00:05]} 52. Ka3 {[%clk 0:00:08]}  Bd8 {[%clk 0:00:06]} 53. d4 {[%clk 0:00:09]}  Bxh4 {[%clk 0:00:07]} 54. Kb3 {[%clk 0:00:09]}  Be7 {[%clk 0:00:08]} 55. Ka2 {[%clk 0:00:08]}  Bd6 {[%clk 0:00:09]} 56. Kb2 {[%clk 0:00:08]}  h4 {[%clk 0:00:10]} 57. Ka2 {[%clk 0:00:08]}  h3 {[%clk 0:00:11]} 58. Kb2 {[%clk 0:00:09]}  h2 {[%clk 0:00:12]} 59. Ka2 {[%clk 0:00:10]}  h1=Q {[%clk 0:00:13]} 60. Kb2 {[%clk 0:00:10]}  Qg2+ {[%clk 0:00:13]} 61. Kb3 {[%clk 0:00:06]}  Qf3+ {[%clk 0:00:13]} 0-1


[Site "https://www.chess.com"]

[Event "Titled Tuesday Blitz June 27 Early 2023"]
[White "Alex_Sahakyan2006"]
[Black "K2JW"]
[WhiteElo "2662"]
[BlackElo "2360"]
[Result "0-1"]
[Round "4"]
[TimeControl "180+2"]
[Date "2023.06.27"]
[WhiteClock "0:00:35"]
[BlackClock "0:00:21"]
[Board "100"]

1. d4 {[%clk 0:03:00]}  d5 {[%clk 0:02:58]} 2. Nf3 {[%clk 0:02:59]}  Nf6 {[%clk 0:02:58]} 3. Bf4 {[%clk 0:02:59]}  c5 {[%clk 0:02:48]} 4. e3 {[%clk 0:02:58]}  Nc6 {[%clk 0:02:48]} 5. c3 {[%clk 0:02:58]}  Bf5 {[%clk 0:02:46]} 6. dxc5 {[%clk 0:02:57]}  e6 {[%clk 0:02:28]} 7. Nd4 {[%clk 0:02:44]}  Bxc5 {[%clk 0:02:09]} 8. Nxf5 {[%clk 0:02:43]}  exf5 {[%clk 0:02:08]} 9. Bd3 {[%clk 0:02:43]}  Ne4 {[%clk 0:02:04]} 10. Nd2 {[%clk 0:02:42]}  O-O {[%clk 0:02:02]} 11. h3 {[%clk 0:02:34]}  Re8 {[%clk 0:01:44]} 12. O-O {[%clk 0:02:32]}  Ne5 {[%clk 0:01:41]} 13. Be2 {[%clk 0:02:31]}  Ng6 {[%clk 0:01:37]} 14. Bh2 {[%clk 0:02:30]}  Qb6 {[%clk 0:01:28]} 15. Nb3 {[%clk 0:02:27]}  Nxf2 {[%clk 0:01:02]} 16. Rxf2 {[%clk 0:02:23]}  Bxe3 {[%clk 0:01:02]} 17. Nd4 {[%clk 0:02:22]}  Qxb2 {[%clk 0:00:59]} 18. Nxf5 {[%clk 0:02:13]}  Bxf2+ {[%clk 0:00:57]} 19. Kxf2 {[%clk 0:02:14]}  Qxc3 {[%clk 0:00:55]} 20. Bd3 {[%clk 0:02:00]}  Qc5+ {[%clk 0:00:49]} 21. Kf1 {[%clk 0:02:00]}  Ne5 {[%clk 0:00:44]} 22. Rc1 {[%clk 0:01:54]}  Qb6 {[%clk 0:00:44]} 23. Bxe5 {[%clk 0:01:48]}  Rxe5 {[%clk 0:00:44]} 24. Qg4 {[%clk 0:01:49]}  g6 {[%clk 0:00:39]} 25. Nh6+ {[%clk 0:01:40]}  Kg7 {[%clk 0:00:37]} 26. Qf4 {[%clk 0:01:41]}  Re6 {[%clk 0:00:28]} 27. Ng4 {[%clk 0:01:22]}  h5 {[%clk 0:00:28]} 28. Nf2 {[%clk 0:01:13]}  Rf6 {[%clk 0:00:28]} 29. Qg3 {[%clk 0:01:14]}  Re8 {[%clk 0:00:27]} 30. Re1 {[%clk 0:00:50]}  Rxe1+ {[%clk 0:00:21]} 31. Kxe1 {[%clk 0:00:51]}  Qd4 {[%clk 0:00:20]} 32. Nd1 {[%clk 0:00:46]}  h4 {[%clk 0:00:20]} 33. Qe3 {[%clk 0:00:35]}  Re6 {[%clk 0:00:21]} 0-1


[Site "https://www.chess.com"]

[Event "Titled Tuesday Blitz June 27 Early 2023"]
[White "Marchesich, Giovanni"]
[Black "Manukyan, Sargis A."]
[WhiteFideId "2824790"]
[BlackFideId "13303970"]
[WhiteElo "2266"]
[BlackElo "2659"]
[Result "0-1"]
[Round "4"]
[TimeControl "180+2"]
[Date "2023.06.27"]
[WhiteClock "0:00:00"]
[BlackClock "0:00:17"]
[Board "103"]

1. d4 {[%clk 0:03:00]}  d5 {[%clk 0:03:00]} 2. Bf4 {[%clk 0:03:00]}  Nf6 {[%clk 0:03:00]} 3. e3 {[%clk 0:03:00]}  Bg4 {[%clk 0:03:00]} 4. Nf3 {[%clk 0:02:51]}  e6 {[%clk 0:02:59]} 5. Be2 {[%clk 0:02:51]}  Bd6 {[%clk 0:02:59]} 6. Bg3 {[%clk 0:02:50]}  O-O {[%clk 0:02:59]} 7. Nbd2 {[%clk 0:02:50]}  c5 {[%clk 0:02:59]} 8. c3 {[%clk 0:02:50]}  Nc6 {[%clk 0:02:59]} 9. Ne5 {[%clk 0:02:50]}  Bxe2 {[%clk 0:02:58]} 10. Qxe2 {[%clk 0:02:51]}  Qc7 {[%clk 0:02:56]} 11. f4 {[%clk 0:02:50]}  Nd7 {[%clk 0:02:55]} 12. Qg4 {[%clk 0:02:40]}  f5 {[%clk 0:02:53]} 13. Qe2 {[%clk 0:02:35]}  Ndxe5 {[%clk 0:02:52]} 14. fxe5 {[%clk 0:02:34]}  Be7 {[%clk 0:02:52]} 15. O-O {[%clk 0:02:34]}  c4 {[%clk 0:02:52]} 16. Nf3 {[%clk 0:02:26]}  b5 {[%clk 0:02:52]} 17. a3 {[%clk 0:02:25]}  a5 {[%clk 0:02:52]} 18. Qf2 {[%clk 0:02:25]}  b4 {[%clk 0:02:53]} 19. axb4 {[%clk 0:02:25]}  axb4 {[%clk 0:02:54]} 20. Bh4 {[%clk 0:02:25]}  Bxh4 {[%clk 0:02:51]} 21. Qxh4 {[%clk 0:02:25]}  bxc3 {[%clk 0:02:47]} 22. Ng5 {[%clk 0:02:18]}  h6 {[%clk 0:02:34]} 23. Nxe6 {[%clk 0:02:16]}  Rxa1 {[%clk 0:02:25]} 24. Rxa1 {[%clk 0:01:39]}  cxb2 {[%clk 0:02:23]} 25. Rb1 {[%clk 0:01:38]}  Qa5 {[%clk 0:01:51]} 26. Nxf8 {[%clk 0:01:35]}  Kxf8 {[%clk 0:01:29]} 27. Qf2 {[%clk 0:01:34]}  c3 {[%clk 0:01:16]} 28. Qxf5+ {[%clk 0:01:32]}  Ke7 {[%clk 0:01:14]} 29. e6 {[%clk 0:01:26]}  Nd8 {[%clk 0:01:07]} 30. Rf1 {[%clk 0:00:37]}  Nxe6 {[%clk 0:00:57]} 31. Qf7+ {[%clk 0:00:37]}  Kd6 {[%clk 0:00:57]} 32. Qe8 {[%clk 0:00:33]}  Qb6 {[%clk 0:00:46]} 33. Qg6 {[%clk 0:00:10]}  Qb3 {[%clk 0:00:43]} 34. Qd3 {[%clk 0:00:06]}  Qc4 {[%clk 0:00:42]} 35. Qc2 {[%clk 0:00:05]}  Qa2 {[%clk 0:00:27]} 36. h4 {[%clk 0:00:04]}  Qa1 {[%clk 0:00:24]} 37. Rb1 {[%clk 0:00:03]}  h5 {[%clk 0:00:24]} 38. Qg6 {[%clk 0:00:00]}  Qa4 {[%clk 0:00:17]} 0-1


[Site "https://www.chess.com"]

[Event "Titled Tuesday Blitz June 27 Early 2023"]
[White "SicilianPanzer"]
[Black "Sanhueza, Cristian"]
[BlackFideId "116815"]
[WhiteElo "2260"]
[BlackElo "2478"]
[Result "0-1"]
[Round "4"]
[TimeControl "180+2"]
[Date "2023.06.27"]
[WhiteClock "0:00:00"]
[BlackClock "0:00:10"]
[Board "104"]

1. e4 {[%clk 0:03:00]}  e5 {[%clk 0:02:58]} 2. Nc3 {[%clk 0:02:58]}  Nf6 {[%clk 0:02:57]} 3. Bc4 {[%clk 0:02:57]}  Nc6 {[%clk 0:02:57]} 4. d3 {[%clk 0:02:57]}  Bc5 {[%clk 0:02:57]} 5. f4 {[%clk 0:02:54]}  d6 {[%clk 0:02:58]} 6. Nf3 {[%clk 0:02:53]}  Bg4 {[%clk 0:02:58]} 7. h3 {[%clk 0:02:33]}  Bxf3 {[%clk 0:02:57]} 8. Qxf3 {[%clk 0:02:30]}  Nd4 {[%clk 0:02:58]} 9. Qd1 {[%clk 0:02:28]}  c6 {[%clk 0:02:34]} 10. fxe5 {[%clk 0:01:46]}  dxe5 {[%clk 0:02:32]} 11. Bg5 {[%clk 0:01:41]}  h6 {[%clk 0:02:30]} 12. Bh4 {[%clk 0:01:38]}  g5 {[%clk 0:02:03]} 13. Bg3 {[%clk 0:01:36]}  Qe7 {[%clk 0:01:59]} 14. Qd2 {[%clk 0:01:07]}  b5 {[%clk 0:01:51]} 15. Bb3 {[%clk 0:01:05]}  a5 {[%clk 0:01:51]} 16. a4 {[%clk 0:00:29]}  Nxb3 {[%clk 0:01:48]} 17. cxb3 {[%clk 0:00:29]}  b4 {[%clk 0:01:46]} 18. Ne2 {[%clk 0:00:18]}  Rd8 {[%clk 0:01:46]} 19. Qc2 {[%clk 0:00:15]}  O-O {[%clk 0:01:42]} 20. O-O-O {[%clk 0:00:14]}  Nh5 {[%clk 0:01:34]} 21. Rhf1 {[%clk 0:00:11]}  Be3+ {[%clk 0:01:21]} 22. Kb1 {[%clk 0:00:11]}  Qe6 {[%clk 0:01:20]} 23. Bf2 {[%clk 0:00:07]}  Bxf2 {[%clk 0:01:15]} 24. Rxf2 {[%clk 0:00:08]}  Nf4 {[%clk 0:01:16]} 25. Ng3 {[%clk 0:00:07]}  Rd7 {[%clk 0:01:09]} 26. Nf5 {[%clk 0:00:07]}  Rfd8 {[%clk 0:01:10]} 27. Rf3 {[%clk 0:00:02]}  h5 {[%clk 0:00:54]} 28. g3 {[%clk 0:00:02]}  g4 {[%clk 0:00:52]} 29. hxg4 {[%clk 0:00:02]}  hxg4 {[%clk 0:00:53]} 30. Re3 {[%clk 0:00:02]}  Ng6 {[%clk 0:00:43]} 31. Rh1 {[%clk 0:00:02]}  Ne7 {[%clk 0:00:31]} 32. Nh6+ {[%clk 0:00:01]}  Kg7 {[%clk 0:00:28]} 33. Qh2 {[%clk 0:00:02]}  Qg6 {[%clk 0:00:15]} 34. Nf5+ {[%clk 0:00:02]}  Nxf5 {[%clk 0:00:15]} 35. exf5 {[%clk 0:00:02]}  Qg5 {[%clk 0:00:13]} 36. Qh7+ {[%clk 0:00:02]}  Kf8 {[%clk 0:00:13]} 37. f6 {[%clk 0:00:01]}  Qxf6 {[%clk 0:00:12]} 38. Rhe1 {[%clk 0:00:01]}  Rd5 {[%clk 0:00:10]} 39. Re4 {[%clk 0:00:00]}  Ke7 {[%clk 0:00:10]} 0-1


[Site "https://www.chess.com"]

[Event "Titled Tuesday Blitz June 27 Early 2023"]
[White "Adla, Diego"]
[Black "Pap, Gyula"]
[WhiteFideId "100072"]
[BlackFideId "725323"]
[WhiteElo "2548"]
[BlackElo "2937"]
[Result "0-1"]
[Round "4"]
[TimeControl "180+2"]
[Date "2023.06.27"]
[WhiteClock "0:02:35"]
[BlackClock "0:02:28"]
[Board "106"]

1. c4 {[%clk 0:03:00]}  e6 {[%clk 0:02:59]} 2. g3 {[%clk 0:03:00]}  d5 {[%clk 0:02:59]} 3. Bg2 {[%clk 0:03:01]}  d4 {[%clk 0:03:00]} 4. Nf3 {[%clk 0:03:00]}  Nc6 {[%clk 0:03:00]} 5. e3 {[%clk 0:02:59]}  Bc5 {[%clk 0:02:52]} 6. O-O {[%clk 0:02:59]}  Nge7 {[%clk 0:02:51]} 7. a3 {[%clk 0:02:59]}  a5 {[%clk 0:02:51]} 8. d3 {[%clk 0:02:58]}  O-O {[%clk 0:02:49]} 9. e4 {[%clk 0:02:56]}  e5 {[%clk 0:02:49]} 10. Ne1 {[%clk 0:02:55]}  Ng6 {[%clk 0:02:35]} 11. f4 {[%clk 0:02:53]}  f5 {[%clk 0:02:35]} 12. fxe5 {[%clk 0:02:49]}  Ncxe5 {[%clk 0:02:34]} 13. h3 {[%clk 0:02:46]}  fxe4 {[%clk 0:02:33]} 14. Rxf8+ {[%clk 0:02:45]}  Qxf8 {[%clk 0:02:33]} 15. dxe4 {[%clk 0:02:43]}  d3+ {[%clk 0:02:29]} 16. Kh2 {[%clk 0:02:42]}  Qf2 {[%clk 0:02:29]} 17. Qd2 {[%clk 0:02:35]}  Qg1# {[%clk 0:02:28]} 0-1


[Site "https://www.chess.com"]

[Event "Titled Tuesday Blitz June 27 Early 2023"]
[White "Henriquez Villagra, Cristobal"]
[Black "Kuzmin, Roman"]
[WhiteFideId "3409350"]
[BlackFideId "44134932"]
[WhiteElo "2888"]
[BlackElo "2529"]
[Result "1-0"]
[Round "4"]
[TimeControl "180+2"]
[Date "2023.06.27"]
[WhiteClock "0:00:22"]
[BlackClock "0:00:12"]
[Board "108"]

1. d3 {[%clk 0:02:57]}  d5 {[%clk 0:02:59]} 2. Nf3 {[%clk 0:02:54]}  Nf6 {[%clk 0:02:57]} 3. Nbd2 {[%clk 0:02:54]}  c5 {[%clk 0:02:47]} 4. e4 {[%clk 0:02:54]}  Nc6 {[%clk 0:02:46]} 5. exd5 {[%clk 0:02:54]}  Nxd5 {[%clk 0:02:47]} 6. g3 {[%clk 0:02:55]}  g6 {[%clk 0:02:41]} 7. Bg2 {[%clk 0:02:55]}  Bg7 {[%clk 0:02:41]} 8. O-O {[%clk 0:02:56]}  O-O {[%clk 0:02:42]} 9. Re1 {[%clk 0:02:56]}  b6 {[%clk 0:02:34]} 10. Nc4 {[%clk 0:02:43]}  Bb7 {[%clk 0:02:32]} 11. Nce5 {[%clk 0:02:43]}  Qc7 {[%clk 0:02:15]} 12. c4 {[%clk 0:02:40]}  Nxe5 {[%clk 0:02:07]} 13. Nxe5 {[%clk 0:02:40]}  Bxe5 {[%clk 0:02:05]} 14. cxd5 {[%clk 0:02:41]}  Bf6 {[%clk 0:01:58]} 15. d4 {[%clk 0:02:06]}  cxd4 {[%clk 0:01:52]} 16. Bf4 {[%clk 0:01:51]}  Qd7 {[%clk 0:01:52]} 17. Be5 {[%clk 0:01:51]}  Bxe5 {[%clk 0:00:50]} 18. Rxe5 {[%clk 0:01:52]}  f6 {[%clk 0:00:50]} 19. Re2 {[%clk 0:01:32]}  Ba6 {[%clk 0:00:39]} 20. Re6 {[%clk 0:01:04]}  Rad8 {[%clk 0:00:32]} 21. Qb3 {[%clk 0:00:51]}  Kg7 {[%clk 0:00:25]} 22. Qa3 {[%clk 0:00:51]}  Qb5 {[%clk 0:00:20]} 23. Rxe7+ {[%clk 0:00:26]}  Rf7 {[%clk 0:00:19]} 24. Rae1 {[%clk 0:00:23]}  Rd7 {[%clk 0:00:18]} 25. Rxd7 {[%clk 0:00:21]}  Rxd7 {[%clk 0:00:16]} 26. Re7+ {[%clk 0:00:22]}  Kh6 {[%clk 0:00:13]} 27. Rxd7 {[%clk 0:00:21]}  Qxd7 {[%clk 0:00:12]} 28. Qxa6 {[%clk 0:00:22]} 1-0


[Site "https://www.chess.com"]